fUST/lending_fUST_20241012
["ID","MTS","AMOUNT","RATE_DAILY","PERIOD"]
[340132750,1728668847373,-1220.98,0.00055068,120]
[340132751,1728668847395,-953.43,0.00055068,120]
[340132752,1728668847415,-546.3,0.00055068,120]
[340132753,1728668847437,-500.0,0.00055068,120]
[340132754,1728668847458,-72.79588888,0.00055068,30]
[340132948,1728669038691,-198.61815344,0.00044072,2]
[340132950,1728669038702,-153.0,0.00049208,120]
[340132952,1728669038711,-153.0,0.00049225,120]
[340132954,1728669038721,-35.20547809,0.00050945,120]
[340132973,1728669038892,-122.37952191,0.00050945,120]
[340132975,1728669038902,-250.0,0.00050945,120]
[340132977,1728669038912,-289.68544155,0.00052,120]
[340132979,1728669038923,-150.0,0.00053945,120]
[340132982,1728669038934,-1000.0,0.00054694,120]
[340132983,1728669038945,-1555.15973037,0.00054793,30]
[340133133,1728669040495,-224.89708963,0.00054793,30]
[340133135,1728669040505,-300.0,0.00054793,15]
[340133137,1728669040515,-177.82374798,0.00054794,120]
[340133140,1728669040531,-500.0,0.00054794,120]
[340133142,1728669040541,-500.0,0.00054794,120]
[340133144,1728669040550,-500.0,0.00054794,120]
[340133146,1728669040560,-8.40980712,0.00054794,120]
[340133149,1728669040572,-491.59019288,0.00054794,120]
[340133151,1728669040582,-569.69,0.00054794,120]
[340133153,1728669040592,-500.0,0.00054794,120]
[340133155,1728669040602,-200.0,0.00054794,120]
[340133157,1728669040611,-500.0,0.00054794,120]
[340133159,1728669040621,-499.02057905,0.00054794,120]
[340133161,1728669040631,-500.0,0.00054794,120]
[340133163,1728669040640,-500.0,0.00054794,120]
[340133165,1728669040650,-563.0,0.00054794,120]
[340133167,1728669040660,-525.69,0.00054794,120]
[340133169,1728669040670,-500.0,0.00054794,120]
[340133171,1728669040680,-500.0,0.00054794,120]
[340133173,1728669040690,-186.50373332,0.00054794,120]
[340133175,1728669040700,-500.0,0.00054794,120]
[340133177,1728669040710,-500.0,0.00054794,120]
[340133179,1728669040720,-500.0,0.00054794,120]
[340133181,1728669040730,-678.93,0.00054794,120]
[340133184,1728669040740,-622.74,0.00054794,2]
[340133186,1728669040749,-622.74,0.00054794,2]
[340133188,1728669040759,-500.0,0.00054794,120]
[340133190,1728669040770,-622.74,0.00054794,2]
[340133192,1728669040779,-622.74,0.00054794,2]
[340133194,1728669040790,-622.74,0.00054794,2]
[340133196,1728669040799,-622.74,0.00054794,2]
[340133198,1728669040809,-622.74,0.00054794,2]
[340133200,1728669040819,-500.0,0.00054794,120]
[340133202,1728669040830,-622.74,0.00054794,2]
[340133204,1728669040840,-500.0,0.00054794,2]
[340133206,1728669040849,-610.54774106,0.00054794,120]
[340133208,1728669040859,-500.0,0.00054794,120]
[340133210,1728669040869,-504.82489418,0.00054794,120]
[340133212,1728669040878,-737.52,0.00054794,120]
[340133214,1728669040888,-500.0,0.00054794,7]
[340133217,1728669040900,-500.0,0.00054794,120]
[340133219,1728669040910,-500.0,0.00054794,120]
[340133221,1728669040921,-500.0,0.00054794,120]
[340133223,1728669040931,-500.0,0.00054794,120]
[340133225,1728669040942,-8216.34,0.00054794,18]
[340133227,1728669040952,-500.0,0.00054794,120]
[340133229,1728669040964,-500.0,0.00054794,2]
[340133231,1728669040975,-500.0,0.00054794,120]
[340133233,1728669040984,-500.0,0.00054794,120]
[340133236,1728669040994,-1909.81378323,0.00054968,28]
[340133237,1728669041004,-622.74,0.00055056,2]
[340133240,1728669041014,-1250.0,0.00055057,120]
[340133242,1728669041026,-622.74,0.00055066,2]
[340133244,1728669041035,-622.74,0.00055067,2]
[340133246,1728669041044,-622.74,0.00055067,2]
[340133248,1728669041054,-622.74,0.00055067,2]
[340133250,1728669041064,-622.74,0.00055067,2]
[340133252,1728669041074,-6494.28,0.00055067,120]
[340133254,1728669041084,-500.0,0.00055067,120]
[340133256,1728669041093,-648.40905229,0.00055067,120]
[340133258,1728669041103,-596.72,0.00055067,2]
[340133260,1728669041112,-575.19,0.00055067,120]
[340133262,1728669041122,-582.27411112,0.00055068,30]
[340133264,1728669041132,-500.0,0.00055068,120]
[340133266,1728669041141,-500.0,0.00055068,120]
[340133268,1728669041151,-1202.61,0.00055068,120]
[340133270,1728669041160,-500.0,0.00055068,120]
[340133272,1728669041171,-1411.29,0.00055068,120]
[340133275,1728669041183,-500.0,0.00055068,120]
[340133277,1728669041194,-1442.25,0.00055068,120]
[340133279,1728669041204,-500.0,0.00055068,2]
[340133281,1728669041215,-983.11089924,0.00055068,120]
[340133601,1728669044187,-0.62481554,0.000396,30]
[340133856,1728669046493,-1485.08225346,0.000396,30]
[340133859,1728669046506,-162.995287,0.00044749,2]
[340133861,1728669046517,-162.995287,0.00044943,2]
[340133863,1728669046527,-162.995287,0.00045138,2]
[340133865,1728669046538,-162.995287,0.00045332,2]
[340133867,1728669046550,-162.995287,0.00045526,2]
[340133869,1728669046560,-162.995287,0.00045721,2]
[340133871,1728669046571,-162.995287,0.00045915,2]
[340133874,1728669046584,-162.995287,0.00046109,2]
[340133876,1728669046594,-162.995287,0.00046304,2]
[340133878,1728669046603,-162.995287,0.00046498,2]
[340133880,1728669046612,-162.995287,0.00046692,2]
[340133882,1728669046622,-162.995287,0.00046887,2]
[340133884,1728669046631,-162.995287,0.00047081,2]
[340133886,1728669046641,-153.0,0.00048912,120]
[340133888,1728669046650,-573189.90864177,0.000539,50]
[340134175,1728669049462,-24128.67953483,0.000539,50]
[340135629,1728669495209,168.19559,0.00026986,2]
[340135632,1728669941143,-173.0,0.0003743,2]
[340135633,1728669941173,-156.49,0.000386,31]
[340135634,1728669941202,-156.49,0.000386,31]
[340135635,1728669941234,-156.49,0.000386,31]
[340135636,1728669941259,-2260.9188983,0.0004276,2]
[340135637,1728669941284,-184.343672,0.00042767,2]
[340135638,1728669941305,-660.0,0.0004315,2]
[340135639,1728669941331,-176.052468,0.00043706,2]
[340135640,1728669941353,-300.0,0.00043799,30]
[340135641,1728669941375,-550.0,0.00043799,5]
[340135642,1728669941398,-500.0,0.000438,5]
[340135643,1728669941426,-156.49,0.000438,36]
[340135644,1728669941455,-156.49,0.000438,36]
[340135645,1728669941480,-156.49,0.000438,36]
[340135646,1728669941506,-156.49,0.000438,36]
[340135647,1728669941534,-156.49,0.000438,36]
[340135648,1728669941561,-156.49,0.000438,36]
[340135649,1728669941585,-176.052468,0.00044275,2]
[340135650,1728669941608,-400.0,0.00044658,2]
[340135651,1728669941634,-176.052468,0.00044844,2]
[340135652,1728669941659,-327.4496973,0.00045,2]
[340135653,1728669941684,-1000.0,0.0004517,5]
[340135654,1728669941709,-176.052468,0.00045414,2]
[340135655,1728669941734,-176.052468,0.00045983,2]
[340135656,1728669941756,-410.0,0.00046534,5]
[340135657,1728669941778,-1021.0,0.00046666,120]
[340135658,1728669941800,-160.0,0.00047,90]
[340135659,1728669941821,-500.0,0.000476,10]
[340135660,1728669941841,-501.79517388,0.000476,10]
[340135661,1728669941864,-500.0,0.000476,10]
[340135662,1728669941887,-280.49555478,0.000476,7]
[340135663,1728669941912,-153.0,0.00048048,120]
[340135664,1728669941939,-190.7,0.000481,2]
[340135665,1728669941959,-160.0,0.00048904,90]
[340135666,1728669941980,-500.0,0.0004897,10]
[340135667,1728669942002,-207.42547338,0.0004897,10]
[340135668,1728669942026,-168.19559,0.00048986,120]
[340135669,1728669942052,-156.49,0.00049,45]
[340135670,1728669942078,-156.49,0.00049,45]
[340135671,1728669942102,-156.49,0.00049,45]
[340135672,1728669942128,-156.49,0.00049,45]
[340135673,1728669942156,-156.49,0.00049,45]
[340135674,1728669942182,-156.49,0.00049,45]
[340135675,1728669942205,-175.3316164,0.00049,10]
[340135676,1728669942231,-400.0,0.00049517,2]
[340135677,1728669942259,-29879.0,0.0005,120]
[340135678,1728669942290,-160.951,0.00050945,120]
[340135679,1728669942315,-1227.774,0.00050945,120]
[340135680,1728669942340,-1000.0,0.00052,120]
[340135681,1728669942506,-1000.0,0.00052545,120]
[340135682,1728669942528,-1000.0,0.00053091,120]
[340135683,1728669942552,-500.0,0.00053132,10]
[340135684,1728669942574,-482.64152886,0.00053132,10]
[340135685,1728669942597,-1000.0,0.00053636,120]
[340135686,1728669942620,-224.0,0.00053736,2]
[340135687,1728669942643,-153.0,0.00053862,120]
[340135688,1728669942667,-153.0,0.00053862,120]
[340135689,1728669942687,-153.0,0.00053862,120]
[340135690,1728669942708,-153.0,0.00053862,120]
[340135691,1728669942728,-153.0,0.00053862,120]
[340135692,1728669942751,-153.0,0.00053862,120]
[340135693,1728669942772,-150.0,0.00053945,120]
[340135694,1728669942793,-436.142,0.00054097,30]
[340135695,1728669942815,-8417.1912279,0.0005416,120]
[340135696,1728669942837,-1000.0,0.00054182,120]
[340135697,1728669942862,-156.49,0.000543,54]
[340135698,1728669942888,-156.49,0.000543,54]
[340135699,1728669942916,-156.49,0.000543,54]
[340135700,1728669942941,-156.49,0.000543,54]
[340135701,1728669942965,-156.49,0.000543,54]
[340135702,1728669942992,-156.49,0.000543,54]
[340135703,1728669943013,-400.0,0.00054376,2]
[340135704,1728669943035,-500.0,0.00054501,10]
[340135705,1728669943056,-154.43334355,0.00054522,96]
[340135706,1728669943077,-173.0,0.0005463,120]
[340135707,1728669943099,-173.0,0.0005463,7]
[340135708,1728669943120,-1000.0,0.00054727,120]
[340135709,1728669943143,-500.0,0.00054773,7]
[340135710,1728669943167,-1382.37919882,0.00054784,8]
[340135712,1728670067888,168.19559,0.00026986,2]
[340135714,1728670149302,-184.343672,0.0004269,2]
[340135715,1728670149326,-400.0,0.00044658,2]
[340135716,1728670149352,-153.0,0.00048137,120]
[340135717,1728670149383,-171.63,0.000487,2]
[340135798,1728670239508,-400.0,0.00049517,2]
[340135799,1728670239519,-400.0,0.00054376,2]
[340135800,1728670239530,-4284.23059874,0.00054684,120]
[340135801,1728670239540,-500.0,0.00054794,120]
[340135802,1728670239551,-500.0,0.00054794,120]
[340135803,1728670239562,-1140.06,0.00054794,120]
[340135804,1728670239574,-538.98,0.00054794,120]
[340135805,1728670239587,-500.0,0.00054794,120]
[340135806,1728670239596,-500.0,0.00054794,120]
[340135807,1728670239605,-500.0,0.00054794,120]
[340135808,1728670239614,-500.0,0.00054794,120]
[340135809,1728670239623,-500.0,0.00054794,120]
[340135810,1728670239635,-1000.0,0.00054794,120]
[340135811,1728670239645,-506.92163939,0.00054794,120]
[340135812,1728670239656,-500.0,0.00054794,2]
[340135813,1728670239666,-500.0,0.00054794,120]
[340135814,1728670239676,-500.0,0.00054794,120]
[340135815,1728670239686,-400.0,0.00054794,120]
[340135816,1728670239695,-500.0,0.00054794,120]
[340135817,1728670239706,-500.0,0.00054794,120]
[340135818,1728670239715,-500.0,0.00054794,120]
[340135819,1728670239725,-500.0,0.00054794,120]
[340135820,1728670239734,-895.14,0.00054794,120]
[340135821,1728670239744,-500.0,0.00054794,120]
[340135822,1728670239753,-500.0,0.00054794,120]
[340135823,1728670239762,-500.0,0.00054794,120]
[340135824,1728670239772,-500.78,0.00054794,120]
[340135825,1728670239783,-500.0,0.00054794,120]
[340135826,1728670239793,-500.0,0.00054794,120]
[340135827,1728670239802,-500.0,0.00054794,120]
[340135828,1728670239812,-500.0,0.00054794,120]
[340135829,1728670239821,-500.0,0.00054794,120]
[340135830,1728670239831,-500.0,0.00054794,2]
[340135831,1728670239840,-186.50373332,0.00054794,120]
[340135832,1728670239850,-500.0,0.00054794,120]
[340135833,1728670239859,-500.0,0.00054794,120]
[340135834,1728670239869,-622.74,0.00054794,2]
[340135835,1728670239879,-622.74,0.00054794,2]
[340135836,1728670239888,-622.74,0.00054794,2]
[340135837,1728670239897,-622.74,0.00054794,2]
[340135838,1728670239911,-622.74,0.00054794,2]
[340135839,1728670239920,-622.74,0.00054794,2]
[340135840,1728670239929,-622.74,0.00054794,2]
[340135841,1728670239939,-622.74,0.00054794,2]
[340135842,1728670239949,-500.0,0.00054794,120]
[340135843,1728670239959,-500.0,0.00054794,120]
[340135844,1728670239968,-737.52,0.00054794,120]
[340135845,1728670239978,-500.0,0.00054794,120]
[340135846,1728670239988,-500.0,0.00054794,7]
[340135847,1728670239997,-604.76,0.00054794,120]
[340135848,1728670240007,-500.0,0.00054794,120]
[340135849,1728670240017,-500.0,0.00054794,120]
[340135850,1728670240026,-591.82277913,0.00054794,120]
[340135851,1728670240035,-500.0,0.00054794,120]
[340135852,1728670240045,-500.0,0.00054794,120]
[340135853,1728670240055,-500.0,0.00054794,120]
[340135854,1728670240064,-300.0,0.00054794,120]
[340135855,1728670240074,-503.18,0.00054794,120]
[340135856,1728670240084,-200.0,0.00054794,120]
[340135857,1728670240096,-660.99,0.00054794,120]
[340135858,1728670240105,-500.0,0.00054794,120]
[340135859,1728670240114,-250.0,0.00054794,120]
[340135860,1728670240124,-500.0,0.00054794,120]
[340135861,1728670240133,-500.0,0.00054794,120]
[340135862,1728670240142,-500.0,0.00054794,120]
[340135863,1728670240152,-690.33,0.00054794,120]
[340135864,1728670240161,-500.0,0.00054794,120]
[340135865,1728670240171,-500.0,0.00054794,120]
[340135866,1728670240180,-500.0,0.00054794,120]
[340135867,1728670240189,-500.0,0.00054794,120]
[340135868,1728670240199,-595.49,0.00054794,120]
[340135869,1728670240209,-500.0,0.00054794,120]
[340135870,1728670240218,-499.02057905,0.00054794,120]
[340135871,1728670240227,-500.0,0.00054794,120]
[340135872,1728670240237,-588.5,0.00054794,120]
[340135873,1728670240246,-500.0,0.00054794,120]
[340135874,1728670240256,-500.0,0.00054794,120]
[340135875,1728670240266,-500.0,0.00054794,120]
[340135876,1728670240276,-550.63,0.00054794,120]
[340135877,1728670240285,-500.0,0.00054794,120]
[340135878,1728670240294,-678.93,0.00054794,120]
[340135879,1728670240303,-500.0,0.00054794,120]
[340135880,1728670240313,-500.0,0.00054794,120]
[340135881,1728670240322,-504.82489418,0.00054794,120]
[340135882,1728670240331,-500.0,0.00054794,120]
[340135883,1728670240340,-500.0,0.00054794,120]
[340135884,1728670240349,-373.39,0.00054794,120]
[340135885,1728670240358,-500.0,0.00054794,120]
[340135886,1728670240367,-500.0,0.00054794,120]
[340135887,1728670240376,-500.0,0.00054794,120]
[340135888,1728670240386,-500.0,0.00054794,120]
[340135889,1728670240395,-500.0,0.00054794,120]
[340135890,1728670240407,-500.0,0.00054794,120]
[340135891,1728670240417,-6370.25692232,0.00054794,18]
[340135893,1728670240664,-1986.68307768,0.00054794,18]
[340135894,1728670240675,-6494.28,0.00054794,120]
[340135895,1728670240687,-500.0,0.00054794,120]
[340135896,1728670240698,-500.0,0.00054794,120]
[340135897,1728670240710,-500.0,0.00054794,120]
[340135898,1728670240721,-500.0,0.00054794,120]
[340135899,1728670240732,-601.28,0.00054794,120]
[340135900,1728670240743,-500.0,0.00054794,120]
[340135901,1728670240752,-500.0,0.00054794,120]
[340135902,1728670240761,-500.0,0.00054794,2]
[340135903,1728670240771,-500.0,0.00054794,120]
[340135904,1728670240781,-648.40905229,0.00054794,120]
[340135905,1728670240790,-596.72,0.00054794,2]
[340135906,1728670240800,-500.0,0.00054794,120]
[340135907,1728670240810,-150.07814443,0.00054794,2]
[340135908,1728670240821,-500.0,0.00054794,120]
[340135909,1728670240832,-500.0,0.00054794,120]
[340135910,1728670240841,-500.0,0.00054794,2]
[340135911,1728670240853,-500.0,0.00054794,120]
[340135912,1728670240865,-1000.0,0.00054967,120]
[340135913,1728670240875,-372.31,0.0005499,10]
[340135914,1728670240886,-261.39964013,0.00054999,120]
[340135915,1728670240896,-228.45303961,0.00054999,120]
[340135916,1728670240905,-258.14330605,0.00054999,120]
[340135917,1728670240916,-200.00000002,0.00055,60]
[340135918,1728670240925,-500.0,0.00055,120]
[340135919,1728670240935,-52221.32604534,0.00055,20]
[340135945,1728670243761,-266.50790198,0.00054794,120]
[340135946,1728670243771,-13274.22541842,0.00055,20]
[340135954,1728670246288,160.0,0.00047,90]
[340136011,1728670246835,150.112233,0.00048,10]
[340136094,1728670330972,156.69,0.000388,31]
[340136095,1728670331002,156.69,0.00044,36]
[340136096,1728670331038,156.69,0.00044,36]
[340136097,1728670331087,156.69,0.000491,45]
[340136098,1728670331153,156.69,0.000491,45]
[340136099,1728670676137,168.010153,0.00026986,2]
[340136107,1728671134153,-500.38374145,0.00035573,5]
[340136108,1728671134178,-192.222152,0.00042622,2]
[340136109,1728671134202,-192.222152,0.00042739,2]
[340136110,1728671134226,-186.458356,0.00042832,2]
[340136111,1728671134250,-192.222152,0.00042856,2]
[340136112,1728671134274,-192.222152,0.00042973,2]
[340136113,1728671134298,-192.222152,0.0004309,2]
[340136114,1728671134328,-192.222152,0.00043207,2]
[340136115,1728671134351,-180.0,0.0004324,30]
[340136116,1728671134375,-3427.38447896,0.00043241,120]
[340136117,1728671134399,-3000.0,0.00043306,2]
[340136118,1728671134423,-192.222152,0.00043324,2]
[340136119,1728671134445,-250.0,0.00043341,2]
[340136120,1728671134467,-214.6632198,0.00043429,2]
[340136121,1728671134492,-192.222152,0.00043441,2]
[340136122,1728671134516,-192.222152,0.00043558,2]
[340136123,1728671134540,-175.197216,0.00043623,2]
[340136124,1728671134564,-175.197216,0.00043666,2]
[340136125,1728671134588,-192.222152,0.00043675,2]
[340136126,1728671134612,-175.197216,0.0004371,2]
[340136127,1728671134635,-175.197216,0.00043754,2]
[340136128,1728671134659,-192.222152,0.00043791,2]
[340136129,1728671134683,-175.197216,0.00043797,2]
[340136130,1728671134709,-175.197216,0.00043841,2]
[340136131,1728671134736,-192.222152,0.00043908,2]
[340136132,1728671134884,-192.222152,0.00044025,2]
[340136133,1728671134910,-192.222152,0.00044142,2]
[340136134,1728671134935,-192.222152,0.00044259,2]
[340136135,1728671134959,-192.222152,0.00044376,2]
[340136136,1728671134987,-192.222152,0.00044493,2]
[340136137,1728671135011,-192.222152,0.0004461,2]
[340136138,1728671135034,-171.428571,0.00044658,2]
[340136139,1728671135058,-192.222152,0.00044727,2]
[340136140,1728671135082,-192.222152,0.00044844,2]
[340136141,1728671135104,-168.010153,0.0004532,120]
[340136142,1728671135126,-1031.20742837,0.00048739,120]
[340136143,1728671203092,-320.66415342,0.00042087,2]
[340136144,1728671223393,168.010153,0.00026986,2]
[340136145,1728671309403,177.94,0.00032011,2]
[340136146,1728671323594,12867.764105,0.00025,2]
[340136147,1728671324503,1191.53384268,0.00029,7]
[340136148,1728671325524,10364.0,0.00025,2]
[340136149,1728671347141,-7401.15512001,0.00033,2]
[340136150,1728671364079,-4538.493778,0.00033,2]
[340136202,1728671432645,-467.09929999,0.00033,2]
[340136264,1728671439425,-5371.37046967,0.00033,2]
[340136265,1728671439436,-707.2318588,0.00034962,2]
[340136266,1728671439448,-679.95409969,0.00035,7]
[340136267,1728671439459,-5596.08372518,0.00039907,120]
[340136268,1728671439551,-2320.75727224,0.00039907,120]
[340136276,1728671440869,-551.88509362,0.00039907,120]
[340136277,1728671440889,-9469.16066824,0.00039907,120]
[340136278,1728671440899,-226.63888102,0.00039907,120]
[340136279,1728671440909,-24579.33584658,0.00042087,2]
[340136280,1728671440918,-194.30319669,0.00042087,30]
[340136281,1728671440928,-2786.04357812,0.000432,28]
[340136282,1728671440938,-293.68132409,0.000433,2]
[340136283,1728671440948,-2535.66609751,0.000434,120]
[340136284,1728671440958,-500.0,0.000435,7]
[340136285,1728671440967,-648.94169454,0.000435,7]
[340136286,1728671440978,-348.571428,0.00044658,2]
[340136287,1728671440988,-2786.0435781,0.00046586,28]
[340136288,1728671440998,-288.1931516,0.00047601,2]
[340136289,1728671441008,-2535.66609749,0.00048858,120]
[340136290,1728671441017,-154.47,0.00049,2]
[340136291,1728671441027,-348.571428,0.00049517,2]
[340136292,1728671441037,-150.112233,0.000498,14]
[340136293,1728671441047,-173.789,0.000498,87]
[340136294,1728671441058,-2786.0435781,0.00049971,28]
[340136295,1728671441068,-150.112233,0.000515,15]
[340136296,1728671441078,-150.0,0.00051867,120]
[340136297,1728671441088,-611.418,0.00051867,120]
[340136298,1728671441098,-682.517,0.00051867,120]
[340136299,1728671441107,-434.63,0.0005199,30]
[340136300,1728671441116,-289.76,0.0005199,30]
[340136301,1728671441129,-241.46,0.0005199,30]
[340136302,1728671441139,-500.0,0.00051999,120]
[340136303,1728671441151,-500.0,0.00051999,120]
[340136304,1728671441162,-500.0,0.00051999,120]
[340136305,1728671441173,-458.5528098,0.00051999,120]
[340136306,1728671441184,-500.0,0.00051999,120]
[340136307,1728671441195,-500.0,0.00051999,120]
[340136308,1728671441205,-500.0,0.00051999,120]
[340136309,1728671441216,-500.0,0.00051999,120]
[340136310,1728671441227,-500.0,0.00051999,120]
[340136311,1728671441237,-500.0,0.00051999,120]
[340136312,1728671441247,-500.0,0.00051999,120]
[340136313,1728671441257,-1000.0,0.00052,120]
[340136314,1728671441267,-26320.97529,0.00052,120]
[340136315,1728671441277,-1000.0,0.00052667,120]
[340136316,1728671441287,-600.0,0.000528,2]
[340136317,1728671441297,-500.0,0.0005285,10]
[340136318,1728671441307,-150.112233,0.000533,11]
[340136319,1728671441317,-1000.0,0.00053333,120]
[340136320,1728671441328,-560.4,0.00053347,10]
[340136321,1728671441338,-467.0,0.00053347,10]
[340136322,1728671441348,-2786.0435781,0.00053357,28]
[340136323,1728671441359,-434.63,0.0005349,30]
[340136324,1728671441370,-2114.4,0.000535,120]
[340136325,1728671441380,-521.56,0.0005398,30]
[340136326,1728671441389,-751.04,0.0005399,30]
[340136327,1728671441400,-625.87,0.0005399,30]
[340136328,1728671441411,-6424.47182,0.00053999,30]
[340136329,1728671441423,-1000.0,0.00054,120]
[340136330,1728671441434,-5462.51325761,0.00054,2]
[340136331,1728671441445,-1313.2815655,0.00054,120]
[340136332,1728671441456,-2535.66609749,0.00054317,120]
[340136333,1728671441466,-348.571428,0.00054376,2]
[340136334,1728671441478,-168.010153,0.00054486,120]
[340136335,1728671441489,-154.33933302,0.00054522,96]
[340136336,1728671441499,-1000.0,0.00054667,120]
[340136337,1728671441508,-244.45746213,0.00054773,10]
[340136338,1728671441519,-7697.00903384,0.00054774,8]
[340136339,1728671441530,-6804.3900528,0.00054774,8]
[340136340,1728671441542,-15394.0180677,0.00054784,8]
[340136341,1728671441552,-13608.7801056,0.00054784,8]
[340136342,1728671441564,-11579.46291297,0.00054789,63]
[340136343,1728671441576,-2529.88635633,0.00054789,2]
[340136344,1728671441587,-105551.66105435,0.00054789,2]
[340136345,1728671441599,-297.11015516,0.00054792,120]
[340136346,1728671441611,-500.0,0.00054792,120]
[340136347,1728671441622,-500.0,0.00054792,120]
[340136348,1728671441633,-539.38931412,0.00054792,120]
[340136349,1728671441645,-327.41929659,0.00054792,31]
[340136350,1728671441657,-443.1580337,0.00054792,120]
[340136351,1728671441667,-500.0,0.00054792,120]
[340136352,1728671441678,-500.0,0.00054792,120]
[340136353,1728671441690,-200.53030323,0.00054792,120]
[340136354,1728671441700,-8367.48545732,0.00054794,84]
[340136355,1728671441710,-161.81279525,0.00054794,120]
[340136356,1728671441719,-290.69036286,0.00054794,120]
[340136357,1728671441729,-500.0,0.00054794,120]
[340136358,1728671441739,-500.0,0.00054794,120]
[340136359,1728671441748,-500.0,0.00054794,120]
[340136360,1728671441758,-500.0,0.00054794,120]
[340136361,1728671441767,-500.0,0.00054794,120]
[340136362,1728671441777,-857.84,0.00054794,120]
[340136363,1728671441787,-500.0,0.00054794,120]
[340136364,1728671441797,-500.0,0.00054794,120]
[340136365,1728671441806,-500.0,0.00054794,120]
[340136366,1728671441820,-186.86452393,0.00054794,120]
[340136367,1728671441832,-511.74818903,0.00054794,120]
[340136368,1728671441844,-500.0,0.00054794,120]
[340136369,1728671441857,-290.09222791,0.00054794,30]
[340136370,1728671441869,-500.0,0.00054794,2]
[340136371,1728671441880,-500.0,0.00054794,120]
[340136372,1728671441892,-740.26,0.00054794,120]
[340136373,1728671441906,-500.0,0.00054794,120]
[340136374,1728671441917,-6.49649268,0.00054794,120]
[340136409,1728671444549,-389.17,0.0005199,10]
[340136410,1728671444558,-110.83,0.00054794,120]
[340136423,1728671446763,-382.67350732,0.00054794,120]
[340136424,1728671446773,-233.42587975,0.00054794,120]
[340136426,1728671446785,-266.57412025,0.00054794,120]
[340136427,1728671446795,-137.33744655,0.00054794,120]
[340136435,1728671821346,167.975384,0.00026986,2]
[340136436,1728672128761,499.93789504,0.00032,120]
[340136438,1728672343235,-159.534834,0.0003792,2]
[340136439,1728672343257,-1.565166,0.00038569,2]
[340136440,1728672364864,167.975384,0.00026986,2]
[340136441,1728672390093,-165.1015,0.00038569,2]
[340136442,1728672390115,-183.846214,0.00039677,2]
[340136443,1728672390137,-1348.24934282,0.00039788,2]
[340136445,1728672565150,-1033.33218596,0.0003557,2]
[340136446,1728672565173,-258.7821327,0.0003567,2]
[340136447,1728672565196,-524.81677718,0.00039788,2]
[340136448,1728672565219,-550.0,0.00040021,30]
[340136449,1728672565242,-550.0,0.00040021,5]
[340136450,1728672565265,-6879.18261154,0.00040022,2]
[340136451,1728672572224,-18020.81738846,0.00040022,2]
[340136452,1728672572248,-2353.58989992,0.00040267,120]
[340136453,1728672572277,-183.846214,0.00040367,2]
[340136454,1728672572301,-183.846214,0.00041056,2]
[340136455,1728672572323,-183.846214,0.00041745,2]
[340136456,1728672572346,-460.0,0.00042688,5]
[340136457,1728672572368,-166.666666,0.00043827,2]
[340136458,1728672572392,-251.0,0.00043829,2]
[340136459,1728672572416,-470.0,0.00044023,30]
[340136460,1728672572441,-159.56044,0.00044658,2]